bitfinex/quotes_BTCUSD_20241120
["timestamp","ask_amount","ask_price","bid_price","bid_amount"]
[1732066265671,0.11906255,91758.0,91732.0,0.00218003]
[1732066265891,0.00063252,91757.0,91733.0,0.0757]
[1732066266126,0.00063252,91757.0,91733.0,0.07750218]
[1732066266598,0.00063252,91757.0,91734.0,0.00217974]
[1732066266996,0.00063252,91757.0,91735.0,0.00180024]
[1732066267238,0.002,91768.0,91735.0,0.00180024]
[1732066267239,0.01,91768.0,91737.0,0.123]
[1732066267437,0.01,91768.0,91736.0,0.5305926]
[1732066267438,0.00063252,91767.0,91739.0,0.123]
[1732066267681,0.00063252,91777.0,91744.0,0.023]
[1732066267883,0.00063252,91780.0,91746.0,0.1459]
[1732066268110,0.10906255,91779.0,91748.0,0.023]
[1732066268363,0.00063252,91778.0,91750.0,0.123]
[1732066268657,0.10969507,91778.0,91750.0,0.123]
[1732066268878,0.10969507,91778.0,91751.0,0.00179202]
[1732066269099,0.10906255,91777.0,91751.0,0.00179202]
[1732066269314,0.002,91770.0,91751.0,0.00179202]
[1732066269532,0.10969507,91769.0,91746.0,0.0472]
[1732066269749,0.10969507,91769.0,91738.0,0.1]
[1732066270183,0.002,91761.0,91738.0,0.1]
[1732066270396,0.10969507,91769.0,91738.0,0.1]
[1732066270397,0.10906255,91760.0,91738.0,0.1]
[1732066270615,0.00063252,91759.0,91738.0,0.1]
[1732066270827,0.10969507,91759.0,91738.0,0.1]
[1732066271279,0.046,91772.0,91731.0,0.04308691]
[1732066271280,0.0763,91757.0,91731.0,0.14308691]
[1732066271506,0.10969507,91756.0,91731.0,0.14308691]
[1732066271717,0.002,91755.0,91731.0,0.1]
[1732066271951,0.10969507,91754.0,91731.0,0.1]
[1732066272170,0.10969507,91754.0,91731.0,0.14520703]
[1732066272406,0.10969507,91754.0,91732.0,0.00217994]
[1732066273555,0.11169507,91754.0,91731.0,0.04520703]
[1732066273793,0.10969507,91754.0,91731.0,0.04520703]
[1732066273998,0.10969507,91754.0,91730.0,0.0008538]
[1732066274242,0.10969507,91754.0,91730.0,0.04517745]
[1732066274448,0.10969507,91754.0,91731.0,0.00218003]
[1732066275799,0.10969507,91754.0,91730.0,0.0008538]
[1732066276011,0.002,91752.0,91730.0,0.0008538]
[1732066276274,0.10969507,91751.0,91730.0,0.0008538]
[1732066276514,0.002,91750.0,91730.0,0.0008538]
[1732066276768,0.10969507,91749.0,91730.0,0.0008538]
[1732066278562,0.002,91747.0,91730.0,0.0008538]
[1732066278787,0.10969507,91746.0,91730.0,0.0008538]
[1732066279913,0.0763,91745.0,91730.0,0.0008538]
[1732066280145,0.10969507,91744.0,91730.0,0.0008538]
[1732066280360,0.002,91740.0,91730.0,0.0008538]
[1732066280569,0.10906255,91739.0,91730.0,0.0008538]
[1732066280783,0.00063252,91738.0,91730.0,0.0008538]
[1732066281011,0.10969507,91738.0,91730.0,0.0008538]
[1732066281536,0.10906255,91737.0,91730.0,0.0008538]
[1732066281777,0.002,91736.0,91730.0,0.0008538]
[1732066281993,0.10906255,91735.0,91730.0,0.0008538]
[1732066282212,0.00063252,91734.0,91730.0,0.0008538]
[1732066282444,0.10906255,91733.0,91730.0,0.0008538]
[1732066282669,0.00063252,91732.0,91730.0,0.0008538]
[1732066282875,0.10906255,91731.0,91730.0,0.0008538]
[1732066283577,0.10906255,91731.0,91730.0,0.00264314]
[1732066283802,0.10906255,91731.0,91730.0,0.00265289]
[1732066285226,0.23676255,91731.0,91730.0,0.00265289]
[1732066285440,0.23876255,91731.0,91730.0,0.00265289]
[1732066285670,0.23876255,91731.0,91730.0,0.0008538]
[1732066285910,0.24876255,91731.0,91730.0,0.0008538]
[1732066287482,0.24876255,91731.0,91687.0,0.03558782]
[1732066287483,0.0807,91712.0,91689.0,0.00218073]
[1732066287690,0.10969507,91711.0,91689.0,0.00218073]
[1732066287966,0.10969507,91711.0,91702.0,0.046988]
[1732066288202,0.10969507,91711.0,91703.0,0.00189363]
[1732066288912,0.10969507,91711.0,91702.0,0.0017076]
[1732066288913,0.10969507,91711.0,91710.0,0.1]
[1732066289116,0.10969507,91711.0,91702.0,0.00159656]
[1732066289117,0.10906255,91711.0,91702.0,0.00159656]
[1732066289370,0.10906255,91711.0,91702.0,0.04665608]
[1732066289599,0.0827,91721.0,91702.0,0.04665608]
[1732066289600,0.0807,91721.0,91703.0,0.00189108]
[1732066289826,0.10906255,91720.0,91703.0,0.00189108]
[1732066290056,0.002,91719.0,91703.0,0.00189108]
[1732066290277,0.10906255,91718.0,91702.0,0.00159656]
[1732066290732,0.10906255,91718.0,91703.0,0.0018976]
[1732066290937,0.10906255,91718.0,91702.0,0.00159656]
[1732066291148,0.10906255,91718.0,91703.0,0.0018976]
[1732066291367,0.00063252,91717.0,91702.0,0.00159656]
[1732066291590,0.10906255,91716.0,91703.0,0.00189667]
[1732066291883,0.00063252,91715.0,91703.0,0.00189667]
[1732066292113,0.10906255,91714.0,91702.0,0.00159656]
[1732066292329,0.00063252,91713.0,91702.0,0.00159656]
[1732066292574,0.00063252,91713.0,91703.0,0.00189388]
[1732066292821,0.002,91724.0,91703.0,0.00189388]
[1732066292822,0.00063252,91720.0,91703.0,0.00189388]
[1732066293057,0.00063252,91720.0,91703.0,0.0040747]
[1732066293058,0.10906255,91720.0,91703.0,0.0040747]
[1732066293508,0.10906255,91720.0,91703.0,0.00218082]
[1732066293969,0.00063252,91728.0,91704.0,0.00189322]
[1732066294191,0.10906255,91727.0,91705.0,0.00218064]
[1732066294464,0.00063252,91726.0,91705.0,0.00218064]
[1732066294686,0.10906255,91725.0,91722.0,0.1]
[1732066294911,0.00063252,91724.0,91722.0,0.1]
[1732066295140,0.00063252,91724.0,91723.0,0.00188018]
[1732066295365,0.00063252,91728.0,91722.0,0.1]
[1732066295594,0.00063252,91728.0,91705.0,0.00218064]
[1732066296053,0.00063252,91728.0,91706.0,0.00189881]
[1732066297250,0.00063252,91728.0,91707.0,0.00218065]
[1732066297477,0.10906255,91727.0,91723.0,0.1]
[1732066297721,0.00063252,91726.0,91723.0,0.1]
[1732066297939,0.10906255,91725.0,91724.0,0.00189089]
[1732066298166,0.10906255,91725.0,91723.0,0.1]
[1732066298390,0.10906255,91725.0,91703.0,0.0008535]
[1732066298610,0.00063252,91724.0,91703.0,0.0008535]
[1732066298827,0.00063252,91724.0,91704.0,0.00190766]
[1732066299550,0.00063252,91724.0,91705.0,0.00218055]
[1732066299750,0.10906255,91725.0,91706.0,0.00190487]
[1732066299976,0.10906255,91725.0,91724.0,0.1]
[1732066300207,0.10906255,91725.0,91724.0,0.10188903]
[1732066301132,0.10906255,91725.0,91724.0,0.00188903]
[1732066301339,0.10906255,91725.0,91703.0,0.0008535]
[1732066301577,0.00063252,91724.0,91704.0,0.00190766]
[1732066302013,0.00063252,91724.0,91705.0,0.00218055]
[1732066302446,0.00063252,91724.0,91706.0,0.00190487]
[1732066302652,0.00063252,91724.0,91707.0,0.00218055]
[1732066303086,0.00063252,91724.0,91708.0,0.001903]
[1732066303529,0.00063252,91724.0,91709.0,0.00218055]
[1732066304666,0.00063252,91724.0,91704.0,0.00218055]
[1732066305093,0.00063252,91724.0,91705.0,0.0019058]
[1732066305325,0.0807,91736.0,91709.0,0.1]
[1732066305536,0.10906255,91735.0,91709.0,0.1]
[1732066305745,0.10906255,91735.0,91710.0,0.00191232]
[1732066306646,0.10906255,91735.0,91708.0,0.0492]
[1732066306647,0.002,91733.0,91708.0,0.0492]
[1732066306874,0.10906255,91732.0,91711.0,0.00191046]
[1732066307222,0.0017084,91724.0,91708.0,0.0492]
[1732066307747,0.0017084,91724.0,91709.0,0.00190207]
[1732066311291,0.0017084,91724.0,91710.0,0.00218051]
[1732066311725,0.0017084,91724.0,91711.0,0.00187985]
[1732066311945,0.0017084,91724.0,91712.0,0.00218039]
[1732066312174,0.0512,91750.0,91715.0,0.023]
[1732066312439,0.10906255,91749.0,91717.0,0.023]
[1732066312664,0.10906255,91749.0,91716.0,0.00406966]
[1732066312665,0.10906255,91749.0,91742.0,0.1]
[1732066313134,0.10906255,91749.0,91743.0,0.00186333]
[1732066313557,0.10906255,91749.0,91730.0,0.0771]
[1732066313819,0.10906255,91749.0,91731.0,0.0018745]
[1732066314745,0.0492,91760.0,91731.0,0.00405458]
[1732066314971,0.10906255,91753.0,91731.0,0.10405458]
[1732066315190,0.10906255,91755.0,91732.0,0.023]
[1732066315423,0.10906255,91755.0,91733.0,0.00402112]
[1732066315884,0.10906255,91755.0,91734.0,0.0492]
[1732066316112,0.10906255,91755.0,91735.0,0.00217989]
[1732066316322,0.01,91780.0,91754.0,0.1]
[1732066316323,0.0817,91773.0,91754.0,0.1]
[1732066316805,0.0817,91773.0,91755.0,0.00180858]
[1732066317287,0.0817,91773.0,91736.0,0.0771]
[1732066317288,0.0817,91773.0,91738.0,0.023]
[1732066317540,0.0817,91773.0,91755.0,0.00180858]
[1732066317762,0.10906255,91772.0,91740.0,0.023]
[1732066318001,0.10906255,91772.0,91742.0,0.023]
[1732066318439,0.10906255,91772.0,91744.0,0.023]
[1732066318673,0.001708,91755.0,91744.0,0.023]
[1732066318918,0.001708,91755.0,91745.0,0.00401239]
[1732066319587,0.001708,91755.0,91745.0,0.00183279]
[1732066320750,0.001708,91755.0,91736.0,0.07476736]
[1732066321946,0.10906255,91772.0,91736.0,0.07476736]
[1732066323797,0.10906255,91772.0,91737.0,0.1]
[1732066325599,0.10906255,91772.0,91739.0,0.1]
[1732066325825,0.10906255,91772.0,91741.0,0.1]
[1732066326047,0.10906255,91772.0,91743.0,0.1]
[1732066326282,0.10906255,91772.0,91745.0,0.1]
[1732066326570,0.10906255,91772.0,91747.0,0.1]
[1732066326801,0.10906255,91772.0,91748.0,0.00217952]
[1732066327261,0.002,91785.0,91748.0,0.00217952]
[1732066327486,0.10906255,91780.0,91748.0,0.00217952]
[1732066327715,0.10906255,91780.0,91749.0,0.0758]
[1732066328197,0.002,91792.0,91751.0,0.0758]
[1732066328432,0.10906255,91791.0,91755.0,0.1]
[1732066328660,0.10906255,91791.0,91756.0,1.76929377]
[1732066328889,0.10906255,91791.0,91758.0,0.0758]
[1732066329151,0.10906255,91791.0,91760.0,0.1]
[1732066329367,0.10906255,91791.0,91761.0,2.20957812]
[1732066329589,0.01,91806.0,91762.0,2.07412601]
[1732066329817,0.10906255,91795.0,91764.0,0.1]
[1732066330051,0.10906255,91795.0,91765.0,0.00217901]
[1732066330303,0.10906255,91795.0,91764.0,0.1]
[1732066331051,0.10906255,91795.0,91767.0,0.1246]
[1732066331333,0.10906255,91795.0,91763.0,0.10906255]
[1732066331334,0.0017074,91772.0,91769.0,0.075]
[1732066331578,0.0472078,91817.0,91775.0,0.1]
[1732066331810,0.10906255,91815.0,91790.0,0.075]
[1732066333453,0.002,91812.0,91778.0,0.075]
[1732066333678,0.0117078,91816.0,91778.0,0.075]
[1732066333679,0.002,91809.0,91778.0,0.075]
[1732066333905,0.10906255,91808.0,91778.0,0.075]
[1732066334346,0.10906255,91808.0,91779.0,0.00217893]
[1732066334569,0.11106255,91808.0,91779.0,0.00217893]
[1732066334806,0.10906255,91808.0,91779.0,0.00217893]
[1732066335753,0.11106255,91808.0,91779.0,0.00217893]
[1732066335986,0.002,91805.0,91779.0,0.00217893]
[1732066336214,0.002,91805.0,91778.0,0.175]
[1732066336215,0.10906255,91804.0,91778.0,0.175]
[1732066338562,0.10906255,91804.0,91779.0,0.00217886]
[1732066338812,0.0017078,91816.0,91779.0,0.94416086]
[1732066339048,0.0017078,91816.0,91778.0,0.175]
[1732066339049,0.10906255,91815.0,91780.0,1.462752]
[1732066339273,0.10906255,91815.0,91781.0,0.94087669]
[1732066339535,0.10906255,91815.0,91782.0,1.096852]
[1732066339764,0.10906255,91815.0,91783.0,0.0479]
[1732066341114,0.10906255,91815.0,91785.0,0.1]
[1732066341345,0.10906255,91815.0,91787.0,0.1]
[1732066342029,0.002,91812.0,91787.0,0.1]
[1732066342240,0.10906255,91811.0,91787.0,0.1]
[1732066342700,0.10906255,91811.0,91783.0,0.0479]
[1732066342954,0.11106255,91811.0,91785.0,0.1]
[1732066343180,0.0008533,91808.0,91786.0,0.156694]
[1732066343423,0.10906255,91807.0,91787.0,0.1]
[1732066343657,0.10906255,91807.0,91785.0,0.1]
[1732066343658,0.11106255,91807.0,91785.0,0.1]
[1732066344589,0.0017078,91817.0,91787.0,0.1]
[1732066344814,0.10906255,91816.0,91788.0,0.00217858]
[1732066345044,0.0017078,91817.0,91788.0,0.00217858]
[1732066345045,0.0017078,91817.0,91791.0,0.023]
[1732066345272,0.0756,91830.0,91791.0,0.023]
[1732066345273,0.07082374,91830.0,91793.0,0.123]
[1732066345503,0.10906255,91829.0,91795.0,0.123]
[1732066345737,0.10906255,91829.0,91797.0,0.1]
[1732066345968,0.10906255,91829.0,91799.0,0.1]
[1732066346207,0.0017068,91848.0,91802.0,0.0495]
[1732066346208,0.002,91840.0,91802.0,0.0495]
[1732066346447,0.10906255,91838.0,91805.0,0.023]
[1732066346673,0.10906255,91838.0,91807.0,0.1]
[1732066346877,0.10906255,91838.0,91809.0,0.1]
[1732066347103,0.10906255,91838.0,91805.0,0.023]
[1732066347104,0.10906255,91838.0,91811.0,0.1]
[1732066347316,0.10906255,91838.0,91812.0,0.126]
[1732066347537,0.10906255,91838.0,91813.0,0.1]
[1732066348000,0.0017068,91848.0,91813.0,0.1]
[1732066348001,0.0017068,91848.0,91815.0,0.1]
[1732066348232,0.0017068,91848.0,91817.0,0.1]
[1732066348484,0.0017068,91848.0,91819.0,0.1]
[1732066348728,0.0017068,91848.0,91820.0,0.462135]
[1732066348954,0.0017068,91848.0,91821.0,0.1]
[1732066349180,0.0017068,91848.0,91821.0,0.282059]
[1732066349408,0.10906255,91838.0,91823.0,0.1]
[1732066350559,0.10906255,91838.0,91813.0,0.00217792]
[1732066350560,0.10906255,91838.0,91813.0,0.10217792]
[1732066350813,0.10906255,91838.0,91815.0,0.1]
[1732066351060,0.10906255,91838.0,91817.0,0.1]
[1732066351303,0.0017068,91848.0,91819.0,0.1]
[1732066351557,0.0008537,91849.0,91822.0,0.0495]
[1732066351779,0.0008531,91853.0,91825.0,0.023]
[1732066352011,0.0008531,91853.0,91827.0,0.123]
[1732066352274,0.0008531,91853.0,91829.0,0.1]
[1732066352503,0.0008531,91853.0,91831.0,0.1]
[1732066352725,0.0008531,91853.0,91833.0,0.1]
[1732066352938,0.0008531,91853.0,91835.0,0.0495]
[1732066353181,0.0008531,91853.0,91836.0,0.00217744]
[1732066354092,0.0008531,91853.0,91835.0,0.0495]
[1732066354549,0.0008531,91853.0,91833.0,0.14510965]
[1732066354760,0.0028531,91853.0,91833.0,0.14510965]
[1732066354980,0.0008531,91853.0,91833.0,0.14510965]
[1732066356343,0.002,91850.0,91833.0,0.14510965]
[1732066356568,0.10906255,91849.0,91833.0,0.14510965]
[1732066356794,0.002,91842.0,91833.0,0.04510965]
[1732066357020,0.10906255,91841.0,91833.0,0.04510965]
[1732066357234,0.10906255,91841.0,91825.0,0.0765]
[1732066357513,0.10906255,91841.0,91825.0,0.11964403]
[1732066357963,0.10906255,91841.0,91825.0,0.04314403]
[1732066358415,0.10906255,91841.0,91823.0,0.0017058]
[1732066359124,0.002,91831.0,91823.0,0.046469]
[1732066359340,0.002,91831.0,91823.0,0.0017058]
[1732066360001,0.10906255,91831.0,91823.0,0.0017058]
[1732066360220,0.002,91833.0,91823.0,0.0017058]
[1732066360221,0.10906255,91830.0,91823.0,0.0017058]
[1732066360431,0.11106255,91830.0,91823.0,0.0017058]
[1732066360641,0.10906255,91830.0,91823.0,0.0017058]
[1732066363031,0.002,91836.0,91823.0,0.0017058]
[1732066363247,0.04341076,91884.0,91823.0,0.0017058]
[1732066363248,0.002,91840.0,91824.0,0.0788]
[1732066363465,0.002,91843.0,91824.0,0.0788]
[1732066363704,0.11106255,91843.0,91824.0,0.08097792]
[1732066363938,0.002,91840.0,91824.0,0.08097792]
[1732066364150,0.002,91840.0,91824.0,0.0788]
[1732066365485,0.10906255,91843.0,91824.0,0.0788]
[1732066365486,0.002,91850.0,91825.0,0.1497]
[1732066365700,0.002,91850.0,91826.0,1.62841832]
[1732066365960,0.0008531,91853.0,91826.0,1.62841832]
[1732066365961,0.0008531,91853.0,91828.0,0.0788]
[1732066366186,0.0008531,91853.0,91830.0,0.1]
[1732066366410,0.0008531,91853.0,91830.0,0.20906255]
[1732066366630,0.0008531,91853.0,91831.0,0.00217747]
[1732066367509,0.0008529,91849.0,91831.0,0.00217747]
[1732066368170,0.0008529,91849.0,91832.0,0.01483163]
[1732066368374,0.0008529,91849.0,91828.0,0.0788]
[1732066368577,0.0008529,91849.0,91829.0,0.615813]
[1732066370754,0.0008529,91849.0,91830.0,0.1]
[1732066370963,0.0008529,91849.0,91830.0,0.10217747]
[1732066371215,0.0008531,91853.0,91830.0,0.10217747]
[1732066371672,0.0008531,91853.0,91831.0,0.10906255]
[1732066371890,0.0008531,91853.0,91833.0,0.1285]
[1732066372105,0.0008531,91853.0,91834.0,0.616678]
[1732066372339,0.0008531,91853.0,91836.0,0.1]
[1732066372577,0.0008531,91853.0,91835.0,1.739124]
[1732066372578,0.0008531,91853.0,91838.0,0.1]
[1732066372817,0.0008531,91853.0,91838.0,0.09160645]
[1732066373746,0.0008531,91853.0,91835.0,0.10906255]
[1732066373988,0.0008531,91853.0,91836.0,1.506399]
[1732066374468,0.0008531,91853.0,91836.0,1.29072]
[1732066374678,0.0008531,91853.0,91833.0,0.1285]
[1732066374905,0.002,91846.0,91833.0,0.1285]
[1732066375126,0.002,91846.0,91834.0,0.1]
[1732066376306,0.0008531,91853.0,91834.0,0.1]
[1732066376771,0.002,91847.0,91834.0,0.1]
[1732066377206,0.0008531,91853.0,91834.0,0.1]
[1732066377442,0.0008531,91853.0,91834.0,0.10217761]
[1732066377682,0.0008531,91853.0,91836.0,0.1]
[1732066377914,0.0008531,91853.0,91838.0,0.1]
[1732066378207,0.0008531,91853.0,91840.0,0.1]
[1732066378696,0.0008531,91853.0,91842.0,0.1]
[1732066379608,0.0008531,91853.0,91836.0,0.1]
[1732066379855,0.0008529,91847.0,91837.0,0.0809773]
[1732066380088,0.0008529,91847.0,91839.0,0.1]
[1732066380313,0.0008529,91847.0,91841.0,0.1]
[1732066380549,0.0008529,91847.0,91842.0,0.00217727]
[1732066381031,0.0008529,91847.0,91844.0,0.1497]
[1732066381272,0.0008529,91847.0,91845.0,1.71207366]
[1732066381516,0.0008529,91847.0,91846.0,1.62527503]
[1732066381738,0.0008529,91847.0,91846.0,1.27780355]
[1732066382382,0.0008529,91847.0,91846.0,1.17290355]
[1732066382606,0.0008529,91847.0,91846.0,1.06319255]
[1732066383055,0.0008531,91853.0,91846.0,1.06319255]
[1732066383258,0.0008531,91853.0,91848.0,0.1]
[1732066383486,0.0008531,91853.0,91850.0,0.1]
[1732066383693,0.0008531,91853.0,91852.0,0.1]
[1732066383927,0.09666282,91913.0,91852.0,0.1]
[1732066383928,0.002,91871.0,91852.0,0.639519]
[1732066384150,0.002,91872.0,91854.0,0.1]
[1732066385067,0.01,91895.0,91854.0,0.1]
[1732066385290,0.002,91872.0,91848.0,0.1]
[1732066385560,0.002,91875.0,91848.0,0.1]
[1732066385778,0.0004,91879.0,91850.0,0.1]
[1732066385986,0.0004,91879.0,91845.0,0.04479947]
[1732066385987,0.0004,91879.0,91852.0,0.1]
[1732066386197,0.0004,91879.0,91854.0,0.1]
[1732066386413,0.0004,91879.0,91856.0,0.1]
[1732066386659,0.0004,91879.0,91858.0,0.1]
[1732066386869,0.0004,91879.0,91859.0,0.82097094]
[1732066387105,0.0004,91879.0,91861.0,0.1]
[1732066387309,0.0004,91879.0,91862.0,0.01484294]
[1732066387551,0.0004,91879.0,91863.0,0.01484294]
[1732066387768,0.0004,91879.0,91865.0,0.1497]
[1732066388001,0.0004,91879.0,91866.0,0.01484294]
[1732066388258,0.10906255,91878.0,91867.0,0.01484294]
[1732066388512,0.10906255,91878.0,91868.0,0.01484294]
[1732066388513,0.00217747,91877.0,91868.0,0.01484294]
[1732066388718,0.00217747,91877.0,91869.0,0.01484294]
[1732066388719,0.19206255,91876.0,91869.0,0.01484294]
[1732066388930,0.00217747,91875.0,91870.0,0.01484294]
[1732066389144,0.10906255,91874.0,91871.0,0.01484294]
[1732066389377,0.10906255,91874.0,91852.0,0.0497]
[1732066389378,0.00217747,91873.0,91872.0,0.01484294]
[1732066389592,0.00217747,91873.0,91845.0,0.27422741]
[1732066389593,0.11124002,91873.0,91845.0,0.08]
[1732066389826,0.10906255,91872.0,91848.0,0.04515356]
[1732066390039,0.00217747,91871.0,91845.0,0.08]
[1732066390258,0.10906255,91870.0,91845.0,0.08]
[1732066390509,0.00217747,91869.0,91845.0,0.08]
[1732066390720,0.00217747,91868.0,91845.0,0.04448753]
[1732066391015,0.10906255,91867.0,91845.0,0.04448753]
[1732066391269,0.00217747,91866.0,91836.0,0.19422741]
[1732066391481,0.10906255,91865.0,91838.0,0.19422741]
[1732066391696,0.00217747,91864.0,91839.0,0.0021776]
[1732066391922,0.10906255,91863.0,91839.0,0.1021776]
[1732066392138,0.00217747,91862.0,91839.0,0.1021776]
[1732066392373,0.10906255,91861.0,91839.0,0.1021776]
[1732066392603,0.00217747,91860.0,91840.0,0.01482558]
[1732066392832,0.00217747,91875.0,91842.0,0.0017058]
[1732066393065,0.10906255,91874.0,91844.0,0.1]
[1732066393305,0.10906255,91874.0,91846.0,0.1]
[1732066393306,0.00217747,91873.0,91846.0,0.1]
[1732066393522,0.10906255,91872.0,91847.0,0.01700287]
[1732066393738,0.00217747,91871.0,91847.0,0.01700287]
[1732066393953,0.00217747,91871.0,91848.0,0.01482558]
[1732066393954,0.10906255,91870.0,91848.0,0.01482558]
[1732066394158,0.00217747,91869.0,91850.0,0.08]
[1732066394390,0.10906255,91868.0,91851.0,0.01482558]
[1732066394586,0.00217747,91867.0,91852.0,0.01482558]
[1732066394861,0.10906255,91866.0,91853.0,0.01482558]
[1732066395092,0.00217747,91875.0,91854.0,0.01482558]
[1732066395324,0.11124002,91875.0,91855.0,0.01482558]
[1732066395581,0.11124002,91875.0,91856.0,0.01482558]
[1732066395796,0.11124002,91875.0,91857.0,0.01482558]
[1732066396007,0.11124002,91875.0,91852.0,0.29422741]
[1732066396008,0.11124002,91875.0,91858.0,0.01482558]
[1732066396239,0.11124002,91875.0,91859.0,0.01482558]
[1732066396458,0.11124002,91875.0,91860.0,0.01482558]
[1732066396693,0.11124002,91875.0,91861.0,0.01482558]
[1732066396961,0.10906255,91874.0,91862.0,0.01482558]
[1732066397172,0.079,91872.0,91863.0,0.01482558]
[1732066397413,0.079,91872.0,91850.0,0.0450221]
[1732066397414,0.11124002,91871.0,91864.0,0.01482558]
[1732066397625,0.11124002,91871.0,91865.0,0.01482558]
[1732066397837,0.11124002,91871.0,91866.0,0.01482558]
[1732066398069,0.11124002,91871.0,91867.0,0.01482558]
[1732066398280,0.11124002,91871.0,91868.0,0.01482558]
[1732066398497,0.11124002,91871.0,91869.0,0.01482558]
[1732066398749,0.11124002,91871.0,91845.0,0.29422741]
[1732066400102,0.11124002,91871.0,91845.0,0.33870211]
[1732066400328,0.11124002,91871.0,91846.0,0.19422741]
[1732066400557,0.11124002,91871.0,91847.0,0.1]
[1732066403082,0.11124002,91871.0,91850.0,0.1]
[1732066405405,0.11124002,91871.0,91850.0,0.24770192]
[1732066406517,0.11124002,91871.0,91852.0,0.1]
[1732066407436,0.11124002,91871.0,91852.0,0.24599512]
[1732066407649,0.11124002,91871.0,91854.0,0.1]
[1732066408067,0.11124002,91871.0,91850.0,0.0017068]
[1732066411006,0.11124002,91871.0,91851.0,0.0021772]
[1732066411007,0.10906255,91871.0,91851.0,0.0021772]
[1732066411242,0.10906255,91871.0,91850.0,0.0017068]
[1732066411243,0.00217747,91870.0,91852.0,0.0498]
[1732066411474,0.10906255,91869.0,91855.0,0.1]
[1732066411701,0.10906255,91869.0,91852.0,0.1498]
[1732066411702,0.00217747,91868.0,91856.0,0.1]
[1732066412145,0.00217747,91868.0,91856.0,0.29504349]
[1732066412352,0.00217747,91868.0,91856.0,0.1]
[1732066412560,0.00217747,91868.0,91856.0,0.29504349]
[1732066412777,0.00217747,91868.0,91858.0,0.1]
[1732066413197,0.00217747,91868.0,91862.0,0.1]
[1732066413410,0.00217747,91868.0,91858.0,0.1]
[1732066413889,0.00217747,91868.0,91858.0,0.29504349]
[1732066414362,0.00217747,91868.0,91861.0,0.1]
[1732066414825,0.0008529,91877.0,91863.0,0.1]
[1732066414826,0.00303037,91877.0,91863.0,0.1]
[1732066415056,0.10906255,91876.0,91864.0,0.11485002]
[1732066415268,0.00217747,91875.0,91865.0,0.01485002]
[1732066415771,0.00217747,91875.0,91866.0,0.01485002]
[1732066415995,0.10906255,91876.0,91867.0,0.01485002]
[1732066416218,0.10906255,91876.0,91868.0,0.01485002]
[1732066416450,0.10906255,91876.0,91869.0,0.01485002]
[1732066416721,0.00217747,91875.0,91870.0,0.01485002]
[1732066416957,0.00217747,91875.0,91868.0,0.1]
[1732066416958,0.0008529,91877.0,91871.0,0.01485002]
[1732066417195,0.0008529,91877.0,91872.0,0.16114322]
[1732066417416,0.0008529,91877.0,91873.0,0.11485235]
[1732066417668,0.0008529,91877.0,91874.0,0.01485235]
[1732066417884,0.0008529,91877.0,91875.0,0.1]
[1732066418113,0.0008529,91877.0,91876.0,0.01485235]
[1732066418331,0.0008529,91877.0,91876.0,0.30989584]
[1732066418536,0.0008529,91877.0,91876.0,0.11485235]
[1732066418752,0.0008529,91877.0,91876.0,0.309872]
[1732066418992,0.0008529,91877.0,91876.0,0.11485235]
[1732066419226,0.0008529,91877.0,91876.0,0.309872]
[1732066419677,0.0008529,91877.0,91876.0,0.11485235]
[1732066420346,0.0008529,91877.0,91876.0,0.309872]
[1732066420573,0.0008529,91877.0,91876.0,0.11485235]
[1732066421025,0.0008529,91877.0,91876.0,0.01485235]
[1732066421656,0.0001619,91879.0,91876.0,0.01485235]
[1732066421881,0.0001619,91879.0,91878.0,0.24622814]
[1732066422100,0.0001619,91879.0,91878.0,0.26108049]
[1732066422309,0.0001619,91879.0,91878.0,0.11485235]
[1732066422518,0.00159183,91887.0,91879.0,0.1]
[1732066422796,0.11065438,91887.0,91880.0,0.16107709]
[1732066423030,0.11124002,91886.0,91885.0,0.29498799]
[1732066423233,0.11124002,91886.0,91885.0,0.11485235]
[1732066423650,0.11124002,91886.0,91885.0,0.35858516]
[1732066423865,0.11124002,91886.0,91885.0,0.11485235]
[1732066424095,0.11124002,91886.0,91885.0,0.01485235]
[1732066424764,0.11124002,91886.0,91879.0,0.1]
[1732066424765,0.01,91880.0,91879.0,0.1462493]
[1732066424986,0.12124002,91880.0,91879.0,0.04512506]
[1732066425222,0.11124002,91880.0,91879.0,0.04512506]
[1732066425436,0.11124002,91880.0,91879.0,0.14626094]
[1732066425691,0.11124002,91880.0,91877.0,0.24376823]
[1732066425915,0.11124002,91880.0,91857.0,0.0465]
[1732066425916,0.10906255,91879.0,91871.0,0.29252188]
[1732066426143,0.00217747,91878.0,91873.0,0.1]
[1732066426371,0.10906255,91877.0,91873.0,0.1]
[1732066426608,0.00217747,91876.0,91873.0,0.1]
[1732066426819,0.10906255,91875.0,91873.0,0.1]
[1732066427474,0.00217747,91874.0,91873.0,0.1]
[1732066427690,0.00217747,91874.0,91855.0,0.0787]
[1732066427691,0.11124002,91874.0,91871.0,0.1]
[1732066427903,0.11124002,91874.0,91855.0,0.0787]
[1732066427904,0.10906255,91873.0,91866.0,0.39252188]
[1732066428110,0.00217747,91872.0,91866.0,0.1]
[1732066428321,0.10906255,91871.0,91865.0,0.1]
[1732066428543,0.00217747,91870.0,91869.0,0.1950322]
[1732066428762,0.11124002,91870.0,91869.0,0.1950322]
[1732066428981,0.11124002,91870.0,91868.0,0.1950322]
[1732066429191,0.10906255,91869.0,91868.0,0.24377943]
[1732066429667,0.10906255,91869.0,91868.0,0.34377943]
[1732066429870,0.10906255,91869.0,91868.0,0.1]
[1732066430325,0.10906255,91869.0,91868.0,0.29502031]
[1732066430584,0.10906255,91869.0,91868.0,0.1]
[1732066430842,0.10906255,91869.0,91868.0,0.29501872]
[1732066431285,0.10906255,91869.0,91868.0,0.1]
[1732066431492,0.10906255,91869.0,91868.0,0.29501583]
[1732066431924,0.01,91868.0,91866.0,0.19003696]
[1732066432140,0.11124002,91867.0,91866.0,0.04376881]
[1732066432580,0.11124002,91867.0,91862.0,0.1]
[1732066432801,0.10906255,91866.0,91862.0,0.1]
[1732066433015,0.00217747,91865.0,91862.0,0.1]
[1732066433238,0.10906255,91864.0,91862.0,0.24626815]
[1732066433450,0.00217747,91863.0,91862.0,0.1]
[1732066433657,0.11124002,91863.0,91862.0,0.1]